Cogmind - Beta 12 @@@ ROGUE MODE // 2023.03.27 @ 19:37:06 Player: Plexion Result: Destroyed by DAS Turret with DAS Cannon Performance ------------- Evolutions (0) 0 Regions Visited (3) 600 Robots Destroyed (30) 150 Value Destroyed (642) 642 Prototype IDs (24) 480 Alien Tech Used (0) 0 Bonus (270) 270 TOTAL SCORE: 2142 Bonus ------- Follower Combat Kills 42 Aligned with FarCom 300 Friendly Fire -72 Cogmind --------- Core Integrity 0/250 Matter 263/300 Energy 98/100 System Corruption 0% Temperature Cool (0) Movement Core (50) Location -10/Exiles Parts ------- > --- POWER (1) -------- (None) > --- PROPULSION (2) --- (None) > --- UTILITY (2) ------ (None) > --- WEAPON (2) ------- (None) > --- INVENTORY (5) ---- Light Treads AWS/Thermal Rocket Launcher Rocket Launcher Peak State ------------ > --- POWER ------------ Improved Ion Engine > --- PROPULSION ------- Light Treads Light Treads > --- UTILITY ---------- High-capacity Storage Unit Experimental Sensor Array > --- WEAPON ----------- Improved Light Cannon Improved Light Cannon > --- INVENTORY -------- Ion Engine Improved Ion Engine Light Treads Armored Wheel Armored Wheel High-capacity Matter Pod Light Armor Plating Light Armor Plating Hacking Suite Assault Rifle Light Assault Rifle Light Assault Rifle Light Assault Rifle Improved Light Cannon Improved Light Cannon Rocket Launcher Rocket Launcher Rocket Launcher Rocket Launcher Rocket Launcher [Rating: 21] Favorites ----------- Power Improved Ion Engine Engine Improved Ion Engine Propulsion Light Treads Treads Light Treads Wheel Armored Wheel Utility Light Armor Plating Device Experimental Sensor Array Storage High-capacity Storage Unit Protection Light Armor Plating Weapon Improved Light Cannon Ballistic Gun Light Assault Rifle Ballistic Cannon Improved Light Cannon Launcher Rocket Launcher Build | -11 -10 -10 -10 ------- Run | Jun Mat Min Exi Slots Evolved . | . . . . Power . | . . . . Propulsion . | . . . . Utility . | . . . . Weapon . | . . . . Parts Attached 26 | 6 12 4 4 Power 2 | 1 1 . . Engine 2 | 1 1 . . Core . | . . . . Reactor . | . . . . Propulsion 4 | 2 . . 2 Treads 2 | 2 . . . Leg . | . . . . Wheel 2 | . . . 2 Hover . | . . . . Flight . | . . . . Utility 6 | 1 3 2 . Device 1 | . . 1 . Storage 3 | 1 2 . . Processor . | . . . . Hackware . | . . . . Protection 2 | . 1 1 . Artifact . | . . . . Weapon 14 | 2 8 2 2 Energy Gun . | . . . . Energy Cannon . | . . . . Ballistic Gun 2 | 2 . . . Ballistic Cannon 9 | . 6 1 2 Launcher 3 | . 2 1 . Special Weapon . | . . . . Impact Weapon . | . . . . Slashing Weapon . | . . . . Piercing Weapon . | . . . . Special Melee Weapon . | . . . . Unidentified Prototypes 1 | . . 1 . Parts Lost 8 | . . . 8 Power 1 | . . . 1 Propulsion 2 | . . . 2 Utility 1 | . . . 1 Weapon 4 | . . . 4 Highest Loss Streak 8 | . . . 8 To Critical Strikes . | . . . . Average Slot Usage (%) 96 | . 91 100 98 Engine 13 | . 14 14 13 Treads 25 | . 28 28 18 Wheel 2 | . . . 9 Storage 14 | . 14 14 14 Protection 10 | . 6 14 13 Ballistic Gun 1 | . 4 . . Ballistic Cannon 26 | . 23 27 27 Naked Turns 3 | . . . 3 Heaviest Build 58 | 13 58 58 58 Greatest Support 40 | 40 40 40 40 Greatest Overweight (x) 2 | 1 1 1 2 Average Overweight (x) . | . . 1 1 Largest Inventory Capacity 20 | 8 20 20 20 Average Capacity 18 | 7 16 20 19 Most Carried 20 | 4 20 20 20 Average Carried 16 | 2 12 19 18 Final Capacity 20 | 8 20 20 5 Final Carried 20 | 4 18 20 5 Class Distribution -------------------- 100% | Mutant Dominant Class ---------------- Mutant | -10/Materials Mutant | -10/Mines Mutant | -10/Exiles Resources | -11 -10 -10 -10 ----------- Run | Jun Mat Min Exi Matter Collected 1043 | 233 584 195 31 Remotely . | . . . . Salvage Created 608 | . 470 138 . Parts 55 | . 40 15 . Haulers Intercepted 2 | . 2 . . Recyclers Shooed . | . . . . Parts Field Recycled . | . . . . Retrieved Matter . | . . . . Parts Self-Destructed . | . . . . Prevented . | . . . . Kills | -11 -10 -10 -10 ------- Run | Jun Mat Min Exi Combat Hostiles Destroyed 23 | . 13 10 . Guns 3 | . 3 . . Cannons 14 | . 7 7 . AOE 6 | . 3 3 . Classes Destroyed 6 | . 5 1 . Worker 1 | . . 1 . Hauler 2 | . 2 . . Operator 2 | . 2 . . Watcher 2 | . 2 . . Swarmer 12 | . 6 6 . Grunt 11 | . 7 4 . Best Kill Streak 3 | . 3 3 . Combat Bots Only 3 | . 3 3 . Max Kills in Single Turn 3 | . 3 3 . Gunslinging . | . . . . Exploded 3 | . 3 3 . Melee . | . . . . Uniques/NPCs Destroyed . | . . . . Combat | -11 -10 -10 -10 -------- Run | Jun Mat Min Exi Damage Taken 1536 | . 225 326 985 Core 257 | . 16 36 205 Absorbed by Shields . | . . . . Core Remaining (%) 100 | 100 . . . Volleys Fired 64 | . 36 19 9 Largest 2 | . 2 2 2 Hottest 78 | . 78 78 78 Shots Fired 124 | . 70 37 17 Gun 26 | . 26 . . Cannon 95 | . 42 36 17 Launcher 3 | . 2 1 . Special . | . . . . Kinetic 121 | . 68 36 17 Thermal . | . . . . Explosive 3 | . 2 1 . Electromagnetic . | . . . . Robot Hit Streak 6 | . 5 5 6 Robot Miss Streak 3 | . 3 3 3 Penetration Max . | . . . . Secondary Targets . | . . . . Shots Hit Robots 67 | . 35 23 9 Core Hits 40 | . 24 12 4 Critical Kills 1 | . 1 . . Critical Parts Destroyed . | . . . . Critical Strikes 2 | . 1 1 . Destroy 1 | . 1 . . Blast 1 | . . 1 . Melee Attacks . | . . . . Impact . | . . . . Slashing . | . . . . Piercing . | . . . . Sneak Attacks . | . . . . Combat Hostiles . | . . . . Follow-up Attacks . | . . . . Damage Inflicted 1482 | . 644 667 171 Guns 150 | . 150 . . Cannons 1019 | . 376 472 171 Explosions 300 | . 116 184 . Melee . | . . . . Ramming 13 | . 2 11 . Kinetic 1169 | . 526 472 171 Thermal . | . . . . Explosive 300 | . 116 184 . Electromagnetic . | . . . . Impact . | . . . . Slashing . | . . . . Piercing . | . . . . Highest Corruption . | . . . . Average Corruption . | . . . . Corruption Purged . | . . . . Corruption Blocked . | . . . . Overload Shots . | . . . . Overflow Damage 4 | . . 4 . Projectiles 4 | . . 4 . Explosions . | . . . . Melee . | . . . . Knockbacks 7 | . 2 2 3 Impact . | . . . . Kinetic 7 | . 2 2 3 Secondary . | . . . . Self-Inflicted Damage 5 | . 5 . . Shots 1 | . 1 . . Rammed 3 | . 2 1 . Targets Rammed 3 | . 2 1 . Kicked . | . . . . Crushed . | . . . . Highest Temperature 264 | . 108 264 60 Average Temperature 57 | . 33 90 15 Received Heat Transfer 237 | . 108 129 . Siege Activations . | . . . . Robots Corrupted . | . . . . Combat Hostiles . | . . . . Parts Fried . | . . . . Impact Corruptions . | . . . . Robots Melted . | . . . . Combat Hostiles . | . . . . Parts Melted . | . . . . Heat Transferred . | . . . . Parts Sabotaged . | . . . . Parts Stolen . | . . . . Parts Stripped . | . . . . Power Chain Reactions . | . . . . Missiles Intercepted . | . . . . Alert | -11 -10 -10 -10 ------- Run | Jun Mat Min Exi Peak Influence 244 | . 244 167 . Initial . | . . . . Average 81 | . 93 72 . Maximum Alert Level 1 | . 1 . . Low Security (%) 95 | 100 90 100 . Level 1 4 | . 9 . . Level 2 . | . . . . Level 3 . | . . . . Level 4 . | . . . . Level 5 . | . . . . High Security . | . . . . Max Security . | . . . . Squads Dispatched 1 | . 1 . . Investigation 1 | . 1 . . Extermination . | . . . . Reinforcement . | . . . . Assault . | . . . . Garrison . | . . . . Intercept . | . . . . Searches Triggered . | . . . . Construction Impeded . | . . . . Haulers Reinforced . | . . . . Active Scanning Responses . | . . . . Cargo Convoy Interrupts . | . . . . Stealth | -11 -10 -10 -10 --------- Run | Jun Mat Min Exi Distress Signals 1 | . 1 . . Communications Jammed . | . . . . Distress Signals . | . . . . Times Spotted 52 | . 19 15 18 Peak Tracking Total 9 | . 4 3 9 Tactical Retreats 3 | . . . 3 Traps | -11 -10 -10 -10 ------- Run | Jun Mat Min Exi Traps Triggered 1 | . 1 . . Indirectly . | . . . . Trap Hack Attempts . | . . . . Triggered . | . . . . Disarmed 4 | . 4 . . Reprogrammed . | . . . . Reused . | . . . . Traps Extracted . | . . . . Installed . | . . . . Triggered . | . . . . Machines | -11 -10 -10 -10 ---------- Run | Jun Mat Min Exi Machines Disabled 5 | . 2 2 1 Max in Single Turn 1 | . 1 1 1 Machines Repaired . | . . . . Machines Sabotaged . | . . . . Overloaded Fab Kills . | . . . . Hacking | -11 -10 -10 -10 --------- Run | Jun Mat Min Exi Machines Accessed 7 | . 5 . 2 Terminals 5 | . 5 . . Fabricators . | . . . . Repair Stations . | . . . . Recycling Units . | . . . . Scanalyzers . | . . . . Garrison Access . | . . . . Total Hacks 15 | . 13 . 2 Successful 6 | . 4 . 2 Failed 8 | . 8 . . Catastrophic 2 | . 2 . . Database Lockouts 1 | . 1 . . Manual 11 | . 10 . 1 Terminals 13 | . 13 . . Fabricators . | . . . . Repair Stations . | . . . . Recycling Units . | . . . . Scanalyzers . | . . . . Garrison Access . | . . . . Terminal Hacks 5 | . 3 . 2 Record 1 | . . . 1 Robot Analysis 2 | . 2 . . Disarm Traps 1 | . 1 . . EX-Prototype ID Bank 1 | . . . 1 Fabricator Hacks . | . . . . Repair Station Hacks . | . . . . Recycling Unit Hacks . | . . . . Scanalyzer . | . . . . Garrison Access Hacks . | . . . . Unauthorized Hacks 1 | . 1 . . Terminals 1 | . 1 . . Operators 1 | . 1 . . Fabricators . | . . . . Repair Stations . | . . . . Recycling Units . | . . . . Scanalyzers . | . . . . Garrison Access . | . . . . Data Cores Recovered 2 | . 2 . . Used . | . . . . Hacking Detections 5 | . 5 . . Full Trace Events . | . . . . Feedback Events . | . . . . Feedback Blocked . | . . . . Robot Schematics Acquired . | . . . . Robots Built . | . . . . Authchips . | . . . . Time . | . . . . Total Robot Build Rating . | . . . . Part Schematics Acquired . | . . . . Parts Built . | . . . . Authchips . | . . . . Time . | . . . . Total Part Build Rating . | . . . . Parts Repaired . | . . . . Time . | . . . . Parts Recycled . | . . . . Recycled Matter . | . . . . Retrieved Matter . | . . . . Retrieved Components . | . . . . Parts Scanalyzed . | . . . . Part Schematics Acquired . | . . . . Parts Damaged . | . . . . Bothacking | -11 -10 -10 -10 ------------ Run | Jun Mat Min Exi Used RIF Installer . | . . . . Robots Hacked . | . . . . Non-combat . | . . . . Combat . | . . . . Robot Hacks Applied . | . . . . Relay Couplers Released . | . . . . Fabnet Peak Effective % . | . . . . Robots Rewired . | . . . . Allies Hacked . | . . . . Hacks Repelled . | . . . . Allies | -11 -10 -10 -10 -------- Run | Jun Mat Min Exi Total Allies 3 | . . 3 . Largest Group 3 | . . 3 3 Highest-Rated Group 40 | . . 40 40 Highest-Rated Ally 16 | . . 16 16 Total Orders 7 | . . . 7 STAY 6 | . . . 6 FOLLOW 1 | . . . 1 Ally Attacks 26 | . . 19 7 Total Damage 185 | . . 178 7 Kills 6 | . . 6 . Allies Corrupted . | . . . . Allies Melted . | . . . . Intel | -11 -10 -10 -10 ------- Run | Jun Mat Min Exi Robot Analysis Total 2 | . 2 . . Derelict Logs Recovered 1 | . . 1 . Drone Launches . | . . . . Drone Recoveries . | . . . . Exploration | -11 -10 -10 -10 ------------- Run | Jun Mat Min Exi Turns Passed 3694 | 88 1399 1268 939 Spaces Moved 1699 | 53 670 497 479 Core 17 | 9 . . 8 Treads 1468 | 44 670 497 257 Legs . | . . . . Wheels 214 | . . . 214 Hover . | . . . . Flight . | . . . . Fastest Speed 50 | 50 160 240 50 Average Speed 199 | 144 185 240 182 Slowest Speed 240 | 160 240 240 240 Overloaded Moves . | . . . . Propulsion Burnouts . | . . . . Robots Hopped . | . . . . Cave-ins Triggered . | . . . . Exploration Rate (%) 66 | 5 93 98 70 Regions Visited 3 Branch Regions 2 Pre-discovered Areas 2 | . . 1 1 Known Exits Taken . | . . . . Unknown Exits Taken 3 | 1 1 1 . Scrap Searched 1 | . . 1 . Spaces Dug 12 | . 12 . . Terrain Destroyed 27 | . 20 7 . Melee . | . . . . Projectile 3 | . 2 1 . AOE 24 | . 18 6 . Terrain Rammed . | . . . . Walls Destroyed . | . . . . Machines Disabled . | . . . . Actions | -11 -10 -10 -10 --------- Run | Jun Mat Min Exi Total 1880 | 62 759 533 526 Wait 49 | . 10 11 28 Move 1696 | 52 669 496 479 Hop . | . . . . Pick Up 25 | 4 17 2 2 Fast Attach 10 | 6 4 . . Attach 2 | . . . 2 Detach 3 | . 3 . . Swap 14 | . 8 4 2 Drop 14 | . 10 . 4 Fire 64 | . 36 19 9 Melee . | . . . . Ram . | . . . . Kick . | . . . . Crush 3 | . 2 1 . Escape Stasis . | . . . . Rewire . | . . . . Trap . | . . . . Miscellaneous . | . . . . Route ------- -11/Junkyard -10/Materials (discovered 4 exits: [*Mat x3] / [*Min]) -10/Mines (discovered 3 exits: [*Mat x2] / *Exi) -10/Exiles (discovered 2 exits: [*Min x2]) History --------- Turn | Location | Event 9 | -11/Junkyard | Discovered new exit (range 16) 89 | -11/Junkyard | Entered Materials 242 | -10/Materials | Discovered new exit (range 16) 312 | -10/Materials | Build established: Mutant 411 | -10/Materials | Central database locked down 538 | -10/Materials | Discovered new exit (range 16) 743 | -10/Materials | Discovered new exit (range 7) 1015 | -10/Materials | Discovered new exit (range 12) 1488 | -10/Materials | Entered Mines 1734 | -10/Mines | Received a Rocket Launcher from a helpful Derelict 1796 | -10/Mines | Found a damaged Exp. Sensor Array with a note attached 1800 | -10/Mines | Found Prototype Device 1823 | -10/Mines | Identified Exp. Sensor Array 1953 | -10/Mines | Learned Materials trap positions 1992 | -10/Mines | Learned location of Storage (-7) 2207 | -10/Mines | Discovered new exit (range 5) 2408 | -10/Mines | Assisted by bots powering up and referring to "LRC-V3" 2529 | -10/Mines | Discovered new exit (range 14) 2609 | -10/Mines | Deemed a non-threat by the Exiles lab entrance 2744 | -10/Mines | Discovered new exit (range 5) 2756 | -10/Mines | Entered Exiles 2756 | -10/Exiles | Accompanied by 3 allies 2795 | -10/Exiles | Discovered new exit (range 15) 2821 | -10/Exiles | Met 8R-AWN 2855 | -10/Exiles | Met EX-HEX 2944 | -10/Exiles | Met EX-DEC 2987 | -10/Exiles | Learned location of Zion (-6) 3068 | -10/Exiles | Discovered new exit (range 12) 3497 | -10/Exiles | Met EX-BIN 3512 | -10/Exiles | Aligned with FarCom system 3513 | -10/Exiles | Given EX-Vault access code 3543 | -10/Exiles | Opened EX-Vault 3551 | -10/Exiles | Found AWS/Thermal 3577 | -10/Exiles | Warned to stay clear of 0b10 Research branches 3593 | -10/Exiles | Exiles lab attacked by MAIN.C 3653 | -10/Exiles | Attacked by the Exiles 3692 | -10/Exiles | Core integrity fell below 50% 3692 | -10/Exiles | Released all parts (1) 3695 | -10/Exiles | Destroyed by DAS Turret with DAS Cannon Last Messages --------------- 03655_ EX-DEC knocked back. 03658_ Imp. Light Cannon destroyed. 03658_ Knocked back. 03660_ DAS Turret IFF system glitched. 03662_ Imp. Ion Engine destroyed. 03662_ Lgt. Armor Plating destroyed. 03664_ Knocked back. 03672_ Machine disabled. 03677_ Knocked back. 03680_ DAS Turret knocked back. 03681_ Imp. Light Cannon destroyed. 03683_ Knocked back. 03687_ Arm. Wheel destroyed. 03689_ Imp. Light Cannon destroyed. 03691_ Arm. Wheel destroyed. 03692_ Released Hcp. Storage Unit. 03692_ Acquired 9 matter. 03693_ Knocked back. 03694_ Acquired 2 matter. 03695_ 8R-AWN: "We've got company!" Map ----- +----------------------------------------------------+ | ?????????????????????????????????????????????????? | | ?????????????????????????????????????????????????? | | ?????????????????????????????????????????????????? | | ?????????????????????????????????????????????????? | | ?????????????????????????????????????????????????? | | ?????????????????????????????????????????????????? | | ?????????????????????????????????????????????????? | | ?????????????????????????????????????????????????? | | ?????????????????????????????????????????????????? | | ????????????????#####????????????????????????????? | | ???????????????## ##???????????????????????????? | | ???????????????# #???????????????????????????? | | ???????????????# < #???????????????????????????? | | ???????????????# !###?????????????????????????? | | ???????????????# ! #?????????????????????????? | | ???????????????# ##?????????????????????????? | | ???????????????## #??????????????????????????? | | ????????????????#[][ ##?????????????????????????? | | ????????????????##%%% #????????????#######??????? | | ?????????????????#[*!= #######??????#!!! "#??????? | | ?????????????????#!]][ ; "##?????# "#??????? | | ?????????????????## *= % % #?????# "#??????? | | ??????????????????##" ##???## ""#??????? | | ??????????????????#"" % t#####" ""#??????? | | ??????????????????#### ##" ""#??????? | | ?????????????????????## @ %%% #"" #????????? | | ??????????????????????# ## #????????? | | ??????????????????????####### =&! ##???????? | | ????????????????????????????### g !%%!* "#???????? | | ??????????????????????########" ! !!! ###?????? | | ??????????????????????# !!""""" ! ##????? | | ??????????????????????#! "###"" ###### | | ??????????????????????#! "#?##" """# | | ??????????????????????#! !!##??#" | | ??????????????????????# !""""""###???#"# | | ??????????????????????##########?????#### | | ????????????????????????????????????????### | | ??????????????????????????????????????????### | | ????????????????????????????????????????????## | | ?????????????????????????????????????????????## | | ??????????????????????????????????????????????##" | | ???????????????????????????????????????????????#"" | | ??????????????????????????????????????????????##" | | ??????????????????????????????????????????????#"" | | ??????????????????????????????????????????????#""" | | ?????????????????????????????????????????????#""" | | ?????????????????????????????????????????????#""" | | ?????????????????????????????????????????????#"" | | ?????????????????????????????????????????????#""" | | ?????????????????????????????????????????????#"" | +----------------------------------------------------+ Best States ------------- Heat Dissipation 25 Energy Generation 12 Energy Capacity 265 Matter Stores 300 Matter Capacity 300 Sight Range 16 Terrain Scan Density 10 Armor Coverage 150 Evasion (%) 40 Recoil Reduction 2 Item Schematics ----------------- None Robot Schematics ------------------ None Fabricated ------------ Nothing Alien Tech Used ----------------- None Achievements -------------- None Challenges ------------ None Game ------ Seed DamperStorageNanovents Manual? 0 Play Time 00:13:44 Cumulative 376.3 hours Start 2023.03.27 @ 19:24:23 End 2023.03.27 @ 19:37:06 Sessions 1 Manual Loads 0 Difficulty Rogue Special Mode None Game No. 463 Rogue 376 Adventurer 87 Explorer 0 Win Type - Total 18 Types 7/0/9/1/1/0/0/0/0 Lore% 87 Gallery% 90 Achievement% 73 Wizard Run 0 Options --------- ASCII 0 Keyboard 1 Movement Numpad Keybinds 0 Fullscreen 1 Font 18/SmallcapsGlow Map View 76x50 Tactical HUD 1 Map Filters NONE Filters NONE Steam 1 RUN: 2148adbb-8803-498a-88c8-d6f2383a32d9